bitfinex-derivatives/quotes_BTCF0:USTF0_20250822
["timestamp","ask_amount","ask_price","bid_price","bid_amount"]
[1755855015494,2.25148855,113070.0,113060.0,0.12172]
[1755855015696,1.13951,113070.0,113060.0,0.12172]
[1755855015897,1.96415,113070.0,113060.0,0.12172]
[1755855016294,1.60335,113070.0,113060.0,0.12172]
[1755855016599,1.60331,113070.0,113060.0,0.76164855]
[1755855016800,1.10331,113070.0,113060.0,0.76164855]
[1755855017002,0.25789,113070.0,113060.0,0.76244855]
[1755855017197,1.10331,113070.0,113060.0,0.85090555]
[1755855017394,0.27871,113070.0,113060.0,1.01244855]
[1755855017597,0.27871,113070.0,113060.0,0.85090555]
[1755855017799,0.27871,113070.0,113060.0,0.76244855]
[1755855017800,1.06931,113070.0,113060.0,0.76244855]
[1755855018003,1.04612,113070.0,113060.0,0.85090555]
[1755855018601,0.22156,113070.0,113060.0,1.10090555]
[1755855018904,0.002,113070.0,113060.0,1.13273078]
[1755855019317,0.002,113070.0,113060.0,1.18052744]
[1755855019813,1.08132,113080.0,113060.0,1.35743834]
[1755855020019,1.08132,113080.0,113070.0,0.75732855]
[1755855020210,0.25676,113080.0,113070.0,0.84577845]
[1755855020517,1.08128,113080.0,113070.0,0.87760368]
[1755855021113,0.25676,113080.0,113070.0,0.87760368]
[1755855021816,0.8453,113090.0,113070.0,0.96605578]
[1755855022026,0.0561,113090.0,113080.0,0.48497175]
[1755855022321,0.30303861,113100.0,113090.0,0.2058353]
[1755855022616,1.11853437,113100.0,113090.0,0.75732855]
[1755855022811,1.11853437,113100.0,113090.0,0.84576405]
[1755855023313,1.08457437,113100.0,113090.0,0.84576405]
[1755855023512,1.10839437,113100.0,113090.0,0.75732855]
[1755855024309,0.94395437,113100.0,113090.0,0.75732855]
[1755855024617,0.95709437,113100.0,113090.0,0.75732855]
[1755855026211,0.96530437,113100.0,113090.0,0.4782]
[1755855028418,0.96530437,113100.0,113090.0,0.75732855]
[1755855030022,0.96530437,113100.0,113090.0,0.4782]
[1755855030218,0.96530437,113100.0,113090.0,0.1174]
[1755855031926,0.95669437,113100.0,113090.0,0.84576445]
[1755855033129,0.93587437,113100.0,113090.0,0.84576445]
[1755855033329,0.95669437,113100.0,113090.0,0.84576445]
[1755855033825,0.95669437,113100.0,113090.0,0.75732855]
[1755855034034,0.7782678,113100.0,113090.0,0.84576435]
[1755855034222,0.7574478,113100.0,113090.0,0.84576435]
[1755855035830,0.7574478,113100.0,113090.0,0.5666358]
[1755855036026,0.7574478,113100.0,113090.0,0.84576435]
[1755855036422,1.19354238,113110.0,113090.0,0.86475015]
[1755855036624,1.19354238,113110.0,113100.0,0.39652855]
[1755855037127,1.26412851,113110.0,113100.0,0.39652855]
[1755855038223,0.44028851,113110.0,113100.0,0.39652855]
[1755855038425,1.26400851,113110.0,113100.0,0.39652855]
[1755855038627,0.07948851,113110.0,113100.0,0.5666285]
[1755855038929,0.07058613,113110.0,113100.0,0.84575705]
[1755855039123,1.28184,113120.0,113110.0,0.06945]
[1755855039330,1.28184,113120.0,113110.0,0.39652855]
[1755855039728,1.18448,113120.0,113110.0,0.39652855]
[1755855039930,1.18448,113120.0,113110.0,0.1174]
[1755855040431,1.18648,113120.0,113110.0,0.1174]
[1755855040927,1.18848,113120.0,113110.0,0.1174]
[1755855041330,1.19740633,113120.0,113110.0,0.1174]
[1755855041717,1.26954931,113120.0,113110.0,0.1174]
[1755855045432,1.26954931,113120.0,113110.0,0.36459855]
[1755855045632,1.26954931,113120.0,113110.0,0.39652855]
[1755855046832,0.44586931,113120.0,113110.0,0.39652855]
[1755855047032,1.26930931,113120.0,113110.0,0.39652855]
[1755855047531,0.44586931,113120.0,113110.0,0.39652855]
[1755855047833,1.26930931,113120.0,113110.0,0.39652855]
[1755855048134,0.44586931,113120.0,113110.0,0.39652855]
[1755855048337,0.43694298,113120.0,113110.0,0.39652855]
[1755855048638,0.8274,113120.0,113110.0,0.48495015]
[1755855048826,0.004,113120.0,113110.0,0.84575015]
[1755855049328,0.8274,113120.0,113110.0,0.84575015]
[1755855050323,0.83631125,113120.0,113110.0,0.84575015]
[1755855050527,0.8274,113120.0,113110.0,0.84575015]
[1755855050931,0.004,113120.0,113110.0,0.84575015]
[1755855051628,0.004,113120.0,113110.0,1.09575015]
[1755855051845,0.004,113120.0,113110.0,0.84575015]
[1755855052837,0.004,113120.0,113110.0,0.86373207]
[1755855053434,0.004,113120.0,113110.0,1.11373207]
[1755855053632,0.004,113120.0,113110.0,1.93705207]
[1755855054335,0.004,113120.0,113110.0,1.94610451]
[1755855054636,1.43743993,113140.0,113110.0,2.13280977]
[1755855054837,1.19315993,113140.0,113130.0,0.39808855]
[1755855055040,1.19715993,113140.0,113130.0,0.39808855]
[1755855055336,1.26893658,113140.0,113130.0,0.39808855]
[1755855055838,1.27093658,113140.0,113130.0,0.39808855]
[1755855056041,1.27093658,113140.0,113130.0,0.11896]
[1755855056335,1.27093658,113140.0,113130.0,0.39808855]
[1755855056536,1.27493658,113140.0,113130.0,0.39808855]
[1755855056730,1.27693658,113140.0,113130.0,0.39808855]
[1755855056928,0.91613658,113140.0,113130.0,0.48649445]
[1755855057128,0.008,113140.0,113130.0,1.14450078]
[1755855057329,0.012,113140.0,113130.0,1.14450078]
[1755855058334,0.008,113140.0,113130.0,1.14450078]
[1755855058639,0.012,113140.0,113130.0,1.14450078]
[1755855059038,0.008,113140.0,113130.0,1.39450078]
[1755855060233,0.008,113140.0,113130.0,1.39454078]
[1755855060434,0.005,113140.0,113130.0,1.41834164]
[1755855060636,0.002,113140.0,113130.0,1.32993574]
[1755855060829,0.002,113140.0,113130.0,0.61008584]
[1755855061032,0.002,113140.0,113130.0,0.88921439]
[1755855062941,0.002,113140.0,113130.0,0.80080719]
[1755855063151,0.002,113140.0,113130.0,0.52167864]
[1755855063441,0.006,113140.0,113130.0,0.88921429]
[1755855063635,0.002,113140.0,113130.0,0.88921429]
[1755855063837,0.006,113140.0,113130.0,0.88921429]
[1755855064143,0.006,113140.0,113130.0,0.80080719]
[1755855064343,0.006,113140.0,113130.0,0.88921429]
[1755855064845,0.006,113140.0,113130.0,0.80080719]
[1755855065144,0.006,113140.0,113130.0,0.88921429]
[1755855067542,0.006,113140.0,113130.0,0.88920285]
[1755855069340,0.002,113140.0,113130.0,1.1683314]
[1755855069536,0.006,113140.0,113130.0,1.1683314]
[1755855070039,0.002,113140.0,113130.0,1.1683314]
[1755855070636,0.002,113140.0,113130.0,0.6100743]
[1755855070836,0.002,113140.0,113130.0,1.1683314]
[1755855071036,0.002,113140.0,113130.0,0.610075]
[1755855071235,0.002,113140.0,113130.0,0.88920355]
[1755855071835,0.002,113140.0,113130.0,0.43999575]
[1755855072237,0.002,113140.0,113130.0,0.41620633]
[1755855072238,0.006,113140.0,113130.0,0.41620633]
[1755855072435,0.006,113140.0,113130.0,0.50461423]
[1755855073040,0.006,113140.0,113130.0,0.52840365]
[1755855073541,0.006,113140.0,113130.0,0.88920365]
[1755855076348,0.006,113140.0,113130.0,0.86541423]
[1755855077646,0.006,113140.0,113130.0,0.89713346]
[1755855077849,0.006,113140.0,113130.0,0.89718376]
[1755855079345,0.006,113140.0,113130.0,1.17631231]
[1755855079553,0.006,113140.0,113130.0,1.2001587]
[1755855079853,0.006,113140.0,113130.0,0.92103015]
[1755855080046,0.006,113140.0,113130.0,0.89718376]
[1755855081249,0.005,113140.0,113130.0,0.89769821]
[1755855081451,0.005,113140.0,113130.0,1.72033821]
[1755855081947,0.005,113140.0,113130.0,0.89769821]
[1755855082343,0.07821847,113150.0,113140.0,0.2063307]
[1755855082647,0.00588,113150.0,113140.0,0.78171941]
[1755855082846,0.00956,113150.0,113140.0,0.78171941]
[1755855083448,0.00956,113150.0,113140.0,0.42091941]
[1755855083652,0.37036,113150.0,113140.0,0.42091941]
[1755855084450,0.64948855,113150.0,113140.0,0.14179086]
[1755855084846,0.37036,113150.0,113140.0,0.14179086]
[1755855085348,0.45017234,113150.0,113140.0,0.14179086]
[1755855086053,0.72930089,113150.0,113140.0,0.16607035]
[1755855086254,0.72930089,113150.0,113140.0,0.13421035]
[1755855086450,0.72930089,113150.0,113140.0,0.11945035]
[1755855086752,0.98010089,113150.0,113140.0,0.04754949]
[1755855086950,0.98010089,113150.0,113140.0,0.02427949]
[1755855087554,0.01036,113140.0,113130.0,0.02331]
[1755855087754,1.47312855,113140.0,113130.0,0.02331]
[1755855088053,1.72312855,113140.0,113130.0,0.02331]
[1755855090251,1.72312855,113140.0,113130.0,0.04624]
[1755855090958,1.95144855,113140.0,113130.0,0.04624]
[1755855091557,1.95144855,113140.0,113130.0,0.02331]
[1755855091954,1.70144855,113140.0,113130.0,0.02331]
[1755855092151,1.51500572,113140.0,113130.0,0.02331]
[1755855092547,1.76500572,113140.0,113130.0,0.02331]
[1755855092752,1.48587717,113140.0,113130.0,0.02331]
[1755855092953,1.76500572,113140.0,113130.0,0.02331]
[1755855093354,2.26500572,113140.0,113130.0,0.02331]
[1755855095062,2.26484572,113140.0,113130.0,0.02331]
[1755855095262,2.26484572,113140.0,113130.0,4e-05]
[1755855096765,1.82144447,113140.0,113120.0,0.02327]
[1755855096964,1.7417771,113130.0,113120.0,0.02327]
[1755855097165,1.46264855,113130.0,113120.0,0.02327]
[1755855098461,1.96264855,113130.0,113120.0,0.02327]
[1755855098658,1.96264855,113130.0,113110.0,0.0471]
[1755855098659,0.01543,113120.0,113110.0,0.0471]
[1755855098854,0.67369855,113120.0,113110.0,0.06284]
[1755855099059,1.13561855,113120.0,113110.0,0.0947]
[1755855099264,1.49641855,113120.0,113110.0,0.0947]
[1755855099465,1.21729,113120.0,113110.0,0.0947]
[1755855099661,1.49641855,113120.0,113110.0,0.0947]
[1755855099962,1.65749855,113120.0,113110.0,0.0947]
[1755855100353,1.65749855,113120.0,113110.0,0.0957]
[1755855100559,1.65749855,113120.0,113110.0,0.0967]
[1755855100761,1.65749855,113120.0,113110.0,0.11997]
[1755855101969,1.65749855,113120.0,113110.0,0.08811]
[1755855102271,1.65749855,113120.0,113110.0,0.07335]
[1755855102975,1.65753855,113120.0,113110.0,0.05761]
[1755855104069,0.83477855,113120.0,113110.0,0.05761]
[1755855104269,1.65749855,113120.0,113110.0,0.10423]
[1755855105572,1.65749855,113120.0,113110.0,0.05761]
[1755855105872,1.65749855,113120.0,113110.0,0.00204]
[1755855106172,0.03377,113110.0,113100.0,0.05557]
[1755855106475,0.67369855,113110.0,113100.0,0.07884]
[1755855106772,0.67369855,113110.0,113100.0,0.05557]
[1755855106972,0.03366,113100.0,113090.0,0.11793]
[1755855107274,1.49630855,113100.0,113090.0,0.1412]
[1755855107872,1.7744371,113100.0,113090.0,0.07131]
[1755855108168,1.7744371,113100.0,113090.0,0.09458]
[1755855108357,1.49530855,113100.0,113090.0,0.09458]
[1755855108562,1.49430855,113100.0,113090.0,0.09758]
[1755855108761,1.63946855,113100.0,113090.0,0.09758]
[1755855109163,1.63946855,113100.0,113090.0,0.09558]
[1755855109369,1.63946855,113100.0,113090.0,0.09658]
[1755855109565,0.81674855,113100.0,113090.0,0.09658]
[1755855109772,1.63950855,113100.0,113090.0,0.14546]
[1755855109969,1.36038,113100.0,113090.0,0.14546]
[1755855110170,1.63950855,113100.0,113090.0,0.14546]
[1755855110769,1.63946855,113100.0,113090.0,0.14546]
[1755855111769,1.63946855,113100.0,113090.0,0.11118]
[1755855112472,1.63946855,113100.0,113090.0,0.14546]
[1755855113475,1.63954855,113100.0,113090.0,0.14546]
[1755855113878,1.36042,113100.0,113090.0,0.14546]
[1755855114073,1.63954855,113100.0,113090.0,0.14546]
[1755855114277,1.63954855,113100.0,113090.0,0.11118]
[1755855114472,1.63954855,113100.0,113090.0,0.08791]
[1755855114874,0.03166,113090.0,113080.0,0.08738]
[1755855115176,1.49438855,113090.0,113080.0,0.16899116]
[1755855115478,1.13358855,113090.0,113080.0,0.16899116]
[1755855115673,1.49438855,113090.0,113080.0,0.16899116]
[1755855115872,1.49438855,113090.0,113080.0,0.14493]
[1755855116074,1.49438855,113090.0,113080.0,0.14593]
[1755855116474,0.67158855,113090.0,113080.0,0.08067]
[1755855116675,1.56520647,113090.0,113080.0,0.14593]
[1755855116874,1.28607792,113090.0,113080.0,0.14593]
[1755855117078,1.56520647,113090.0,113080.0,0.14593]
[1755855117672,1.57429482,113090.0,113080.0,0.14693]
[1755855117978,1.80801482,113090.0,113080.0,0.14693]
[1755855118675,1.80801482,113090.0,113080.0,0.002]
[1755855118870,1.80801482,113090.0,113070.0,0.07430583]
[1755855119075,0.67158855,113080.0,113070.0,0.13956583]
[1755855119269,0.67158855,113080.0,113070.0,0.16283583]
[1755855120280,1.13358855,113080.0,113070.0,0.16283583]
[1755855120681,1.13358855,113080.0,113070.0,0.16483583]
[1755855121381,1.13358855,113080.0,113070.0,0.16683583]
[1755855121882,1.13358855,113080.0,113070.0,0.07830583]
[1755855122181,1.13358855,113080.0,113070.0,0.10157583]
[1755855122381,1.13358855,113080.0,113070.0,0.16683583]
[1755855123178,1.28586855,113080.0,113070.0,0.16683583]
[1755855125477,1.64666855,113080.0,113070.0,0.14356583]
[1755855125684,1.64666855,113080.0,113070.0,0.16683583]
[1755855127683,1.36754,113080.0,113070.0,0.10157583]
[1755855127885,1.64666855,113080.0,113070.0,0.10157583]
[1755855128684,1.64666855,113080.0,113070.0,0.004]
[1755855128885,0.02412,113070.0,113060.0,0.02327]
[1755855129186,0.67936855,113070.0,113060.0,0.02327]
[1755855129781,0.81392855,113070.0,113060.0,0.02327]
[1755855130589,0.81392855,113070.0,113060.0,0.02527]
[1755855130890,0.81392855,113070.0,113060.0,0.02727]
[1755855131080,0.67936855,113070.0,113060.0,0.02727]
[1755855131587,0.67936855,113070.0,113060.0,0.004]
[1755855131983,0.9584971,113070.0,113060.0,0.004]
[1755855132289,1.4584971,113070.0,113060.0,0.004]
[1755855132881,1.6550571,113070.0,113060.0,0.004]
[1755855133390,1.6309371,113070.0,113050.0,0.12909304]
[1755855133581,1.14132855,113060.0,113050.0,0.15236304]
[1755855134378,1.14132855,113060.0,113050.0,0.11808304]
[1755855134595,1.50212855,113060.0,113050.0,0.002]
[1755855134892,1.50212855,113060.0,113050.0,0.006]
[1755855135792,1.73588855,113060.0,113050.0,0.006]
[1755855136791,1.73588855,113060.0,113050.0,0.004]
[1755855136993,1.73588855,113060.0,113050.0,0.006]
[1755855137392,2.23588855,113060.0,113050.0,0.006]
[1755855137887,2.33708675,113060.0,113050.0,0.006]
[1755855138080,0.01513,113040.0,113030.0,0.14207304]
[1755855138284,1.50164855,113040.0,113030.0,0.14153]
[1755855138989,1.73540855,113040.0,113030.0,0.14153]
[1755855139384,1.73540855,113040.0,113030.0,0.10945]
[1755855139585,1.73640855,113040.0,113030.0,0.14153]
[1755855140694,1.73644855,113040.0,113030.0,0.14153]
[1755855143797,0.2738,113040.0,113030.0,0.14153]
[1755855144097,1.09648,113040.0,113030.0,0.14153]
[1755855146194,1.37560855,113040.0,113030.0,0.14153]
[1755855147698,1.14184855,113040.0,113030.0,0.14153]
[1755855149699,0.86272,113040.0,113030.0,0.14153]
[1755855150001,1.14184855,113040.0,113030.0,0.14153]
[1755855150794,1.14184855,113040.0,113030.0,0.1597212]
[1755855151101,1.14184855,113040.0,113030.0,0.0727612]
[1755855151689,1.14184855,113040.0,113030.0,0.1048412]
[1755855151894,1.14184855,113040.0,113030.0,0.0875012]
[1755855152403,1.14184855,113040.0,113030.0,0.1437112]
[1755855155392,0.86272,113040.0,113030.0,0.1437112]
[1755855155594,1.14184855,113040.0,113030.0,0.1437112]
[1755855156195,0.86272,113040.0,113030.0,0.1597212]
[1755855156391,0.8626,113040.0,113030.0,0.1597212]
[1755855156703,1.14172855,113040.0,113030.0,0.1597212]
[1755855158404,1.14172855,113040.0,113030.0,0.18355721]
[1755855160101,1.14172855,113040.0,113030.0,0.06529721]
[1755855160600,1.14172855,113040.0,113030.0,0.09659721]
[1755855161007,1.14172855,113040.0,113030.0,0.0727612]
[1755855162308,1.14172855,113040.0,113030.0,0.09659721]
[1755855162506,1.14172855,113040.0,113030.0,0.13546721]
[1755855162703,1.14172855,113040.0,113030.0,0.16754721]
[1755855162908,1.24976855,113040.0,113030.0,0.16754721]
[1755855163108,1.24976855,113040.0,113030.0,0.1437112]
[1755855163308,1.24976855,113040.0,113030.0,0.16754721]
[1755855163709,1.61056855,113040.0,113030.0,0.04202721]
[1755855163910,1.61056855,113040.0,113030.0,0.02383601]
[1755855164212,1.8896971,113040.0,113030.0,0.02383601]
[1755855164408,1.61056855,113040.0,113020.0,0.44765524]
[1755855164706,0.67896855,113030.0,113020.0,0.08685524]
[1755855164910,0.67896855,113030.0,113020.0,0.07840601]
[1755855165413,0.67896855,113030.0,113020.0,0.04710601]
[1755855165615,0.67896855,113030.0,113020.0,0.02327]
[1755855166022,0.68763663,113030.0,113020.0,0.02327]
[1755855166213,0.68763663,113030.0,113020.0,0.04474]
[1755855166808,0.69063663,113030.0,113020.0,0.04474]
[1755855167009,0.69063663,113030.0,113020.0,0.02327]
[1755855168024,0.76340517,113030.0,113020.0,0.02327]
[1755855169024,1.02204517,113030.0,113020.0,0.02327]
[1755855169419,0.99813517,113030.0,113010.0,0.12605601]
[1755855169624,1.14159855,113020.0,113010.0,0.14132601]
[1755855170023,1.14159855,113020.0,113010.0,0.02383601]
[1755855170225,1.50239855,113020.0,113010.0,0.02383601]
[1755855170728,0.04019,113010.0,113000.0,0.19008953]
[1755855170930,0.31931855,113010.0,113000.0,0.19008953]
[1755855171127,0.31931855,113010.0,113000.0,0.1583703]
[1755855172822,0.31931855,113010.0,113000.0,0.10808601]
[1755855173019,0.31931855,113010.0,113000.0,0.14038601]
[1755855173631,1.14151855,113010.0,113000.0,0.14038601]
[1755855173826,0.86239,113010.0,113000.0,0.14038601]
[1755855174028,1.14151855,113010.0,113000.0,0.14038601]
[1755855174227,1.14155855,113010.0,113000.0,0.14038601]
[1755855174424,0.04019,113010.0,113000.0,0.78031456]
[1755855174629,0.83822,113010.0,113000.0,0.78031456]
[1755855174833,0.01602,113010.0,113000.0,0.78031456]
[1755855175132,0.8222,113010.0,113000.0,0.78031456]
[1755855175332,1.14151855,113010.0,113000.0,0.50118601]
[1755855175533,1.14151855,113010.0,113000.0,0.14038601]
[1755855175921,1.14147855,113010.0,113000.0,0.14038601]
[1755855176826,0.31931855,113010.0,113000.0,0.14038601]
[1755855177026,1.14147855,113010.0,113000.0,0.14038601]
[1755855177226,0.31931855,113010.0,113000.0,0.50118601]
[1755855177435,0.04019,113010.0,113000.0,0.78031456]
[1755855177633,0.86235,113010.0,113000.0,0.78031456]
[1755855179635,0.04019,113010.0,113000.0,0.78031456]
[1755855179834,0.86231,113010.0,113000.0,0.78031456]
[1755855181238,1.14143855,113010.0,113000.0,0.50118601]
[1755855181534,0.86231,113010.0,113000.0,0.50118601]
[1755855183641,0.86231,113010.0,113000.0,0.47735]
[1755855184740,0.86331,113010.0,113000.0,0.11655]
[1755855186136,0.86431,113010.0,113000.0,0.11655]
[1755855190144,0.86431,113010.0,113000.0,0.47735]
[1755855190649,0.8399,113010.0,113000.0,0.75647855]
[1755855191148,0.86407,113010.0,113000.0,0.75647855]
[1755855192349,0.86407,113010.0,113000.0,0.47735]
[1755855192548,1.14319855,113010.0,113000.0,0.08425]
[1755855192746,1.14319855,113010.0,113000.0,0.03105]
[1755855194538,1.14319855,113010.0,112990.0,0.75175803]
[1755855194743,0.31931855,113000.0,112990.0,0.46891179]
[1755855195046,0.31931855,113000.0,112990.0,0.50121179]
[1755855195246,0.04019,113000.0,112990.0,0.50121179]
[1755855196847,0.86191,113000.0,112990.0,0.50121179]
[1755855197351,0.86187,113000.0,112990.0,0.50121179]
[1755855198052,0.86387,113000.0,112990.0,0.50906923]
[1755855199355,0.86387,113000.0,112990.0,0.47676923]
[1755855199553,1.14299855,113000.0,112990.0,0.47676923]
[1755855200047,1.14299855,113000.0,112990.0,0.51009923]
[1755855202952,0.04219,113000.0,112990.0,0.51009923]
[1755855203151,0.86375,113000.0,112990.0,0.51009923]
[1755855203351,0.86371,113000.0,112990.0,0.51009923]
[1755855206465,0.86371,113000.0,112990.0,0.14929923]
[1755855207562,1.14283855,113000.0,112990.0,0.14929923]
[1755855209361,1.14283855,113000.0,112990.0,0.17320979]
[1755855209563,0.86371,113000.0,112990.0,0.17320979]
[1755855209862,1.14283855,113000.0,112990.0,0.17320979]
[1755855210259,1.4226895,113000.0,112990.0,0.45269954]
[1755855210961,1.14319975,113000.0,112990.0,0.45269954]
[1755855212071,1.14319975,113000.0,112990.0,0.17320979]
[1755855212270,1.14319975,113000.0,112990.0,0.45269954]
[1755855212470,1.4226895,113000.0,112990.0,0.41936954]
[1755855212670,1.4226895,113000.0,112990.0,0.45269954]
[1755855213270,1.4226895,113000.0,112990.0,0.13987979]
[1755855213569,1.4226895,113000.0,112990.0,0.37182898]
[1755855213966,1.4226895,113000.0,112990.0,0.39573864]
[1755855214366,1.4226895,113000.0,112990.0,0.42906864]
[1755855214569,1.4226895,113000.0,112990.0,0.45230864]
[1755855214869,0.6011695,113000.0,112990.0,0.45230864]
[1755855215063,1.4223295,113000.0,112990.0,0.45230864]
[1755855215266,1.4223295,113000.0,112990.0,0.42839898]
[1755855215468,1.50363975,113000.0,112990.0,0.14890923]
[1755855215671,1.50363975,113000.0,112990.0,0.06276923]
[1755855215672,1.7831295,113000.0,112990.0,0.06276923]
[1755855215866,1.7831295,113000.0,112990.0,0.05495943]
[1755855216469,0.9619695,113000.0,112990.0,0.05495943]
[1755855216669,1.7830495,113000.0,112990.0,0.05495943]
[1755855216871,1.9584495,113000.0,112990.0,0.05495943]
[1755855217770,1.1373695,113000.0,112990.0,0.05495943]
[1755855217971,1.9584095,113000.0,112990.0,0.12646943]
[1755855218774,1.9584095,113000.0,112990.0,0.05495943]
[1755855220074,1.9584095,113000.0,112990.0,0.06989943]
[1755855220376,1.9584095,113000.0,112990.0,0.10322943]
[1755855221568,1.9584095,113000.0,112990.0,0.05495943]
[1755855221777,1.1373695,113000.0,112990.0,0.02390943]
[1755855221982,1.9582895,113000.0,112990.0,0.02390943]
[1755855223286,1.9341195,113000.0,112980.0,0.48676866]
[1755855223486,0.31933975,112990.0,112980.0,0.52009866]
[1755855224278,0.31933975,112990.0,112980.0,0.48676866]
[1755855224683,0.31933975,112990.0,112980.0,0.52009866]
[1755855225583,0.31933975,112990.0,112980.0,0.50442943]
[1755855226086,0.31933975,112990.0,112980.0,0.14362943]
[1755855226689,0.31933975,112990.0,112980.0,0.11029943]
[1755855226884,0.31933975,112990.0,112980.0,0.14362943]
[1755855227089,1.14009975,112990.0,112980.0,0.14362943]
[1755855228794,1.14013975,112990.0,112980.0,0.14287943]
[1755855229295,1.14013975,112990.0,112980.0,0.42236918]
[1755855229996,1.14013975,112990.0,112980.0,0.14287943]
[1755855230294,1.14013975,112990.0,112980.0,0.42236918]
[1755855230688,1.14013975,112990.0,112980.0,0.14287943]
[1755855230895,0.31933975,112990.0,112980.0,0.14287943]
[1755855231097,0.03985,112990.0,112980.0,0.42236918]
[1755855231288,1.13997975,112990.0,112980.0,0.42236918]
[1755855231489,0.86049,112990.0,112980.0,0.42236918]
[1755855231689,1.13997975,112990.0,112980.0,0.42236918]
[1755855232691,1.13997975,112990.0,112980.0,0.78316918]
[1755855233597,1.13997975,112990.0,112980.0,0.42236918]
[1755855235698,1.13997975,112990.0,112980.0,0.78316918]
[1755855235899,0.18064,113000.0,112990.0,0.10809]
[1755855236090,0.18064,113000.0,112990.0,1.15036895]
[1755855236091,0.105,113000.0,112990.0,1.15036895]
[1755855236286,0.105,113000.0,112990.0,1.40819673]
[1755855236496,0.85367,113020.0,113010.0,0.04712]
[1755855236797,0.919,113020.0,113010.0,0.39686975]
[1755855236986,0.94309,113020.0,113010.0,0.39686975]
[1755855237192,1.5020695,113020.0,113010.0,0.0848]
[1755855237494,1.5020695,113020.0,113010.0,0.11738]
[1755855237695,1.5020695,113020.0,113010.0,0.00929]
[1755855237992,0.12261,113010.0,113000.0,0.75766975]
[1755855238298,0.12261,113010.0,113000.0,0.47818]
[1755855238891,0.88449,113010.0,113000.0,0.75760948]
[1755855239293,0.91896,113010.0,113000.0,0.75760948]
[1755855239697,0.92296,113010.0,113000.0,0.75760948]
[1755855239999,0.94705,113010.0,113000.0,0.75760948]
[1755855240300,0.7746576,113010.0,113000.0,0.75760948]
[1755855240598,0.7930976,113010.0,113000.0,0.47818]
[1755855240897,0.7930976,113010.0,113000.0,0.75760948]
[1755855241901,0.7910976,113010.0,113000.0,0.75760948]
[1755855242194,0.08,113010.0,113000.0,0.75760948]
[1755855242401,0.90028,113010.0,113000.0,0.75760948]
[1755855242902,0.89928,113010.0,113000.0,0.75760948]
[1755855243105,0.90128,113010.0,113000.0,0.75760948]
[1755855243293,0.02733,113010.0,113000.0,0.75760948]
[1755855243600,0.84757,113010.0,113000.0,0.75760948]
[1755855243996,0.88204,113010.0,113000.0,0.75760948]
[1755855246498,0.88469,113010.0,113000.0,0.75760948]
[1755855247793,0.90124,113010.0,113000.0,0.78149475]
[1755855248097,0.9029,113010.0,113000.0,0.78149475]
[1755855248298,0.92648,113010.0,113000.0,0.78149475]
[1755855248494,0.92648,113010.0,113000.0,0.46948527]
[1755855248707,1.20590948,113010.0,113000.0,0.46948527]
[1755855249400,1.20590948,113010.0,113000.0,0.0848]
[1755855249706,1.20590948,113010.0,113000.0,0.11738]
[1755855250405,0.92648,113010.0,113000.0,0.11738]
[1755855251406,0.92648,113010.0,113000.0,0.39680948]
[1755855251801,0.04819,113010.0,113000.0,0.39680948]
[1755855252102,0.84725,113010.0,113000.0,0.87000485]
[1755855252307,0.84721,113010.0,113000.0,0.87000485]
[1755855253102,0.84321,113010.0,113000.0,0.87000485]
[1755855253307,0.84521,113010.0,113000.0,0.87000485]
[1755855254803,0.02533,113010.0,113000.0,0.87000485]
[1755855254995,0.002,113010.0,113000.0,0.87000485]
[1755855255195,0.001,113010.0,113000.0,0.87000485]
[1755855255405,0.002,113010.0,113000.0,0.87000485]
[1755855255799,0.02533,113010.0,113000.0,0.59057537]
[1755855256009,0.0598,113010.0,113000.0,0.87000485]
[1755855257198,0.002,113010.0,113000.0,0.87000485]
[1755855258005,0.002,113010.0,113000.0,0.90185187]
[1755855259110,0.02451,113010.0,113000.0,0.90185187]
[1755855259406,0.05682,113010.0,113000.0,0.81334177]
[1755855261416,0.05682,113010.0,113000.0,0.7894565]
[1755855262107,0.05682,113010.0,113000.0,0.81331348]
[1755855262808,0.04545,113010.0,113000.0,0.81331348]
[1755855263020,0.07776,113010.0,113000.0,0.81331348]
[1755855263316,0.07776,113010.0,113000.0,0.7894565]
[1755855263507,0.0761,113010.0,113000.0,0.7894565]
[1755855263813,0.07345,113010.0,113000.0,0.7894565]
[1755855264010,0.05682,113010.0,113000.0,0.7894565]
[1755855264815,0.05682,113010.0,113000.0,0.8779666]
[1755855265116,0.02451,113010.0,113000.0,0.8779666]
[1755855265316,0.02451,113010.0,113000.0,0.83725316]
[1755855265614,0.02451,113010.0,113000.0,0.92576326]
[1755855265814,0.02451,113010.0,113000.0,0.83725316]
[1755855266510,0.05682,113010.0,113000.0,0.83725316]
[1755855267914,0.05682,113010.0,113000.0,0.7894565]
[1755855268613,0.05682,113010.0,113000.0,0.51002702]
[1755855268819,0.05682,113010.0,113000.0,0.7894565]
[1755855269114,0.02451,113010.0,113000.0,0.7894565]
[1755855269717,0.74868524,113020.0,113010.0,0.12032]
[1755855269918,0.74868524,113020.0,113010.0,0.78444749]
[1755855271716,0.75268524,113020.0,113010.0,0.78444749]
[1755855272219,0.07976,113020.0,113010.0,0.78444749]
[1755855272415,0.8992,113020.0,113010.0,0.78444749]
[1755855273616,0.07976,113020.0,113010.0,0.78444749]
[1755855273816,0.89916,113020.0,113010.0,0.78444749]
[1755855275110,0.92274,113020.0,113010.0,0.78444749]
[1755855279416,1.20216948,113020.0,113010.0,0.47183801]
[1755855280319,1.20216948,113020.0,113010.0,0.50501801]
[1755855281014,1.20216948,113020.0,113010.0,0.45769801]
[1755855282128,1.20216948,113020.0,113010.0,0.44139801]
[1755855282824,1.45216948,113020.0,113010.0,0.38469801]
[1755855283219,1.45216948,113020.0,113010.0,0.02389801]
[1755855285533,1.81296948,113020.0,113010.0,0.02389801]
[1755855285732,0.09934,113010.0,113000.0,0.05780801]
[1755855285932,0.37876948,113010.0,113000.0,0.08059801]
[1755855286133,0.37876948,113010.0,113000.0,0.11103801]
[1755855286331,0.37876948,113010.0,113000.0,0.14421801]
[1755855286731,0.73956948,113010.0,113000.0,0.05780801]
[1755855287032,1.19780948,113010.0,113000.0,0.08059801]
[1755855287235,1.19780948,113010.0,113000.0,0.11109801]
[1755855287431,1.55960948,113010.0,113000.0,0.0872]
[1755855287736,1.19880948,113010.0,113000.0,0.0872]
[1755855287931,1.55960948,113010.0,113000.0,0.0872]
[1755855288529,1.56060948,113010.0,113000.0,0.0872]